bitfinex/quotes_ETHUSD_20240722
["timestamp","ask_amount","ask_price","bid_price","bid_amount"]
[1721620888033,2.84052,3520.5,3520.3,5.77301945]
[1721620888210,7.48,3520.9,3520.3,5.77301945]
[1721620888211,2.84042,3520.6,3520.3,5.77301945]
[1721620891716,2.8403,3520.8,3520.3,5.77301945]
[1721620891913,3.0,3520.7,3520.3,5.77301945]
[1721620892222,5.84034,3520.7,3520.3,5.77301945]
[1721620893387,3.0,3520.7,3520.3,6.3503214]
[1721620893589,3.0,3520.8,3520.4,2.3215]
[1721620893795,3.0,3520.8,3520.5,5.681]
[1721620894222,3.0,3520.8,3520.6,0.09160906]
[1721620894389,7.48,3520.9,3520.6,0.09160906]
[1721620894390,7.48,3520.9,3520.7,5.6807]
[1721620894607,7.48,3520.9,3520.7,5.77229079]
[1721620896739,10.32021,3520.9,3520.7,5.77229079]
[1721620896894,2.84026,3520.8,3520.7,5.77229079]
[1721620897246,2.84026,3520.8,3520.7,5.6807]
[1721620897631,7.48,3520.9,3520.7,5.77216271]
[1721620897939,2.8401,3521.0,3520.7,5.77216271]
[1721620898341,2.8402,3520.9,3520.7,5.77216271]
[1721620898845,2.84026,3520.8,3520.7,5.77216271]
[1721620899404,2.84026,3520.8,3520.7,5.6807]
[1721620899746,2.84026,3520.8,3520.7,5.77216875]
[1721620900242,2.8401,3521.0,3520.7,5.77216875]
[1721620901159,2.84019,3520.9,3520.7,5.77216875]
[1721620902272,2.84002,3521.1,3520.7,5.77216875]
[1721620902428,3.0,3521.0,3520.7,5.77216875]
[1721620903239,2.84026,3520.8,3520.7,5.77216875]
[1721620903642,2.84026,3520.8,3520.7,5.6807]
[1721620903843,2.84018,3520.9,3520.7,5.6807]
[1721620904052,2.84018,3520.9,3520.7,5.77216151]
[1721620905459,3.0,3521.0,3520.7,5.77216151]
[1721620906231,5.83995,3521.2,3520.7,5.77216151]
[1721620906426,5.84002,3521.1,3520.7,5.77216151]
[1721620906629,2.84002,3521.1,3520.7,5.77216151]
[1721620909588,6.175979,3521.4,3520.7,5.77216151]
[1721620909777,6.175979,3521.4,3520.7,5.6807]
[1721620909981,2.83995,3521.2,3520.7,5.6807]
[1721620910174,2.83995,3521.2,3520.8,0.09136451]
[1721620910175,3.0,3521.1,3520.8,0.09136451]
[1721620910377,3.0,3521.1,3520.9,5.6804]
[1721620910582,3.0,3521.1,3520.9,5.77174624]
[1721620911252,2.8401,3521.0,3520.9,5.77174624]
[1721620912981,3.0,3521.1,3520.9,5.77174624]
[1721620913185,5.84004,3521.1,3520.9,5.77174624]
[1721620914200,2.8401,3521.0,3520.9,5.77174624]
[1721620914686,3.0,3521.1,3520.9,5.77174624]
[1721620914868,5.84004,3521.1,3520.9,5.77174624]
[1721620915074,2.8401,3521.0,3520.9,5.77174624]
[1721620915803,3.0,3521.1,3520.9,5.77174624]
[1721620915963,5.84002,3521.1,3520.9,5.77174624]
[1721620916572,3.0,3521.1,3520.9,5.77174624]
[1721620916776,3.0,3521.2,3520.9,5.77174624]
[1721620916986,5.83996,3521.2,3520.9,5.77174624]
[1721620917200,2.84003,3521.1,3520.9,5.6804]
[1721620917502,2.84003,3521.1,3521.0,0.09116734]
[1721620917661,5.84003,3521.1,3521.0,5.77136734]
[1721620918099,3.0,3521.1,3521.0,5.77136734]
[1721620921170,5.84002,3521.1,3521.0,5.6802]
[1721620921677,5.84002,3521.1,3521.0,5.77123131]
[1721620922090,8.68004,3521.1,3521.0,5.77123131]
[1721620922406,5.84002,3521.1,3521.0,5.77123131]
[1721620922767,5.84002,3521.1,3521.0,5.6802]
[1721620922998,5.84002,3521.1,3521.0,5.77117627]
[1721620924377,6.723899,3521.1,3521.0,5.77117627]
[1721620924578,6.723899,3521.1,3521.0,5.6802]
[1721620925117,6.723899,3521.1,3521.0,5.77120405]
[1721620925419,5.84002,3521.1,3521.0,5.77120405]
[1721620926392,7.01852533,3521.1,3521.0,5.77120405]
[1721620926587,9.28542533,3521.1,3521.0,5.77120405]
[1721620926794,10.94694,3521.1,3521.0,5.77120405]
[1721620927119,12.12544533,3521.1,3521.0,5.77120405]
[1721620927409,7.01852533,3521.1,3521.0,5.77120405]
[1721620927625,5.84002,3521.1,3521.0,5.77120405]
[1721620927774,3.8872257,3521.1,3521.0,5.77120405]
[1721620928227,3.88740386,3521.1,3521.0,5.77120405]
[1721620928738,4.01847533,3521.2,3521.0,5.77120405]
[1721620928907,3.0,3521.1,3521.0,5.77120405]
[1721620929089,5.84002,3521.1,3521.0,5.77120405]
[1721620929443,7.01852533,3521.1,3521.0,5.77120405]
[1721620929905,5.84002,3521.1,3521.0,5.77120405]
[1721620930220,7.01852533,3521.1,3521.0,5.77120405]
[1721620933137,3.88834778,3521.1,3521.0,5.77120405]
[1721620933306,3.0,3521.1,3521.0,5.77120405]
[1721620933505,1.17850533,3521.2,3521.0,5.77120405]
[1721620934637,4.01845533,3521.2,3521.0,5.77120405]
[1721620934844,3.0,3521.1,3521.0,5.77120405]
[1721620936214,4.17850533,3521.1,3521.0,5.77120405]
[1721620936941,3.0,3521.1,3521.0,5.77120405]
[1721620937122,3.0,3521.1,3521.0,8.61129405]
[1721620937123,0.88863167,3521.1,3521.0,8.61129405]
[1721620937323,0.88863167,3521.2,3521.0,9.75644945]
[1721620937816,0.88863167,3521.2,3521.0,8.61129405]
[1721620938013,0.88863167,3521.2,3521.0,5.77120405]
[1721620938222,0.88669566,3521.2,3521.0,5.77120405]
[1721620938674,0.88669566,3521.2,3521.0,8.61128405]
[1721620940463,0.88669566,3521.2,3521.0,5.77120405]
[1721620942660,6.34754533,3521.2,3521.0,5.77120405]
[1721620943254,2.3291,3521.2,3521.0,5.77120405]
[1721620943896,3.50760533,3521.2,3521.0,5.77120405]
[1721620944180,1.17850533,3521.3,3521.0,5.77120405]
[1721620945353,1.17850533,3521.2,3521.0,5.77120405]
[1721620946368,5.16888,3521.4,3521.0,5.77120405]
[1721620946369,1.17850533,3521.3,3521.0,5.77120405]
[1721620946554,1.17850533,3521.2,3521.0,5.77120405]
[1721620947356,0.8881138,3521.1,3521.0,5.77120405]
[1721620948254,6.64906052,3521.4,3521.0,5.77120405]
[1721620948255,1.17850533,3521.2,3521.0,5.77120405]
[1721620948961,0.88809939,3521.1,3521.0,5.77120405]
[1721620950048,0.88809939,3521.2,3521.0,5.77120405]
[1721620951162,0.88809939,3521.1,3521.0,5.77120405]
[1721620952485,0.88809939,3521.1,3521.0,9.47245345]
[1721620952641,0.88809939,3521.3,3521.1,2.83994]
[1721620952836,0.88809939,3521.3,3521.2,5.6799]
[1721620953043,0.88809939,3521.3,3521.2,5.77072886]
[1721620953273,0.88809939,3521.3,3521.2,7.10662069]
[1721620953469,0.88809939,3521.3,3521.2,9.94656069]
[1721620954020,1.17850533,3521.5,3521.2,7.10662069]
[1721620954021,0.88809939,3521.4,3521.2,7.10662069]
[1721620956466,0.88809939,3521.4,3521.2,5.77072886]
[1721620956793,0.88809939,3521.3,3521.2,5.77072886]
[1721620957557,1.17850533,3521.4,3521.2,5.77072886]
[1721620957784,0.88782224,3521.3,3521.2,5.77072886]
[1721620957995,1.17850533,3521.4,3521.2,5.77072886]
[1721620958199,0.88782479,3521.3,3521.2,5.77072886]
[1721620958620,1.17850533,3521.4,3521.2,5.77072886]
[1721620959121,0.8878102,3521.3,3521.2,5.77072886]
[1721620959299,1.17850533,3521.4,3521.2,5.77072886]
[1721620959682,0.88779825,3521.3,3521.2,5.77072886]
[1721620960021,0.88777795,3521.3,3521.2,5.77072886]
[1721620960180,6.10953795,3521.3,3521.2,5.77072886]
[1721620960380,12.38099706,3521.3,3521.2,5.77072886]
[1721620960584,20.47190921,3521.3,3521.2,2.37385759]
[1721620960807,2.84078,3520.2,3519.3,2.8982786]
[1721620961006,0.88749748,3520.1,3519.4,0.80853986]
[1721620961244,0.86329748,3520.1,3519.4,6.57875631]
[1721620961421,2.3819,3520.3,3519.5,2.84123]
[1721620961592,2.3819,3520.3,3519.6,8.52372]
[1721620961794,2.3819,3520.3,3519.6,8.61169989]
[1721620962090,11.50391998,3520.4,3519.6,8.61169989]
[1721620962091,8.66332998,3520.4,3519.7,0.67913464]
[1721620962313,8.66332998,3520.4,3519.8,0.08794333]
[1721620962544,8.66332998,3520.4,3519.8,5.77004333]
[1721620963236,11.50390998,3520.4,3519.8,5.77004333]
[1721620963411,10.32058,3520.4,3519.8,5.77004333]
[1721620965139,11.50390998,3520.4,3519.8,5.77004333]
[1721620965430,10.32058,3520.4,3519.8,6.57140401]
[1721620966445,2.84058,3520.4,3519.8,6.57140401]
[1721620967531,4.02378998,3520.6,3519.8,9.41246401]
[1721620967839,3.0,3520.5,3519.9,2.84098]
[1721620968045,3.0,3520.5,3520.0,5.6818]
[1721620968201,3.0,3520.5,3520.0,5.76970677]
[1721620968901,3.0,3520.5,3520.0,8.61060677]
[1721620969101,3.0,3520.6,3520.0,10.15061998]
[1721620970037,2.5,3520.6,3520.0,10.15061998]
[1721620970200,3.38578787,3520.6,3520.0,10.15061998]
[1721620970638,0.88578787,3520.5,3520.0,10.15061998]
[1721620971441,3.38578787,3520.6,3520.0,8.61060677]
[1721620972201,2.3053,3520.2,3520.0,5.76970677]
[1721620972416,5.14611,3520.2,3520.0,5.76970677]
[1721620972741,2.84082,3520.1,3520.0,5.6818]
[1721620972893,2.84082,3520.1,3520.0,5.76990605]
[1721620975566,5.68164,3520.1,3520.0,5.76990605]
[1721620975951,11.52246,3520.1,3520.0,5.76990605]
[1721620976156,13.83026,3520.1,3520.0,5.76990605]
[1721620976351,13.83026,3520.1,3520.0,5.6818]
[1721620976563,15.60021213,3520.1,3520.0,5.76996163]
[1721620976935,14.12472148,3520.1,3520.0,5.76996163]
[1721620977371,16.96554148,3520.1,3520.0,5.76996163]
[1721620977540,18.73613027,3520.1,3520.0,5.6818]
[1721620977741,18.73613027,3520.1,3520.0,5.76996163]
[1721620977960,19.47454955,3520.1,3520.0,5.76996163]
[1721620978181,19.47454955,3520.1,3520.0,1.42045]
[1721620978182,18.73416372,3520.1,3520.0,1.42045]
[1721620978341,2.84191,3518.8,3518.0,2.485]
[1721620978677,2.84191,3518.8,3518.1,6.02140908]
[1721620979042,2.84172,3519.0,3518.1,6.02140908]
[1721620979360,2.84172,3519.0,3518.1,5.97140908]
[1721620980598,7.48,3519.1,3518.1,5.97140908]
[1721620980760,7.48,3519.1,3518.1,5.77290908]
[1721620980761,2.84203,3518.7,3518.1,5.77290908]
[1721620980956,2.84182,3518.9,3518.1,8.61531908]
[1721620981470,3.0,3519.0,3518.3,2.84226]
[1721620981673,3.0,3519.0,3518.4,5.6844]
[1721620981856,3.0,3519.0,3518.4,6.63437111]
[1721620982060,3.0,3519.0,3518.4,9.47656111]
[1721620983519,2.4294,3518.9,3518.4,5.7728542]
[1721620983758,2.81662,3518.5,3518.4,5.7728542]
[1721620983998,3.0,3518.5,3518.4,5.7728542]
[1721620984357,5.68424,3518.5,3518.4,5.7728542]
[1721620984564,8.68424,3518.5,3518.4,5.6844]
[1721620984775,8.68424,3518.5,3518.4,5.77009724]
[1721620986045,5.84212,3518.5,3518.4,5.77009724]
[1721620987088,3.0,3518.5,3518.4,5.77009724]
[1721620987365,5.84212,3518.5,3518.4,5.6844]
[1721620987559,5.84212,3518.5,3518.4,5.77009724]
[1721620989322,5.84212,3518.5,3518.4,5.48559724]
[1721620989682,3.0,3518.5,3518.4,5.48559724]
[1721620990229,2.4294,3518.9,3518.4,5.48559724]
[1721620990230,3.0,3518.6,3518.4,5.48559724]
[1721620990383,2.84212,3518.5,3518.4,5.48559724]
[1721620990582,5.84212,3518.5,3518.4,5.48559724]
[1721620992379,3.0,3518.5,3518.4,5.3999]
[1721620992726,5.4294,3518.9,3518.4,5.48559724]
[1721620993037,2.84211,3518.6,3518.4,5.48559724]
[1721620993184,3.0,3518.5,3518.4,5.48559724]
[1721620994290,5.84212,3518.5,3518.4,5.48559724]
[1721620999308,3.0,3518.5,3518.4,5.48559724]
[1721620999503,5.84204,3518.6,3518.4,5.48559724]
[1721621001611,2.84212,3518.5,3518.4,5.48559724]
[1721621001823,5.84212,3518.5,3518.4,5.48559724]
[1721621002617,5.84212,3518.5,3518.4,5.3999]
[1721621003158,5.84212,3518.5,3518.4,5.48563714]
[1721621005029,3.0,3518.5,3518.4,5.48563714]
[1721621005269,2.84212,3518.5,3518.4,5.48563714]
[1721621005565,3.0,3518.5,3518.4,5.48563714]
[1721621005776,3.0,3518.6,3518.4,5.48563714]
[1721621005945,3.0,3518.7,3518.4,5.48563714]
[1721621006144,2.84212,3518.5,3518.4,5.48563714]
[1721621006352,3.0,3518.7,3518.4,5.48563714]
[1721621006645,2.84211,3518.6,3518.4,5.48563714]
[1721621007367,3.0,3518.7,3518.4,5.48563714]
[1721621007673,5.84199,3518.7,3518.4,5.3999]
[1721621008163,5.84199,3518.7,3518.5,0.08573335]
[1721621008479,5.84199,3518.7,3518.6,5.9686]
[1721621008640,3.0,3518.7,3518.6,5.9686]
[1721621008834,2.84182,3518.9,3518.6,6.05431506]
[1721621008835,3.0,3518.8,3518.6,6.05431506]
[1721621011798,3.0,3518.9,3518.6,6.05431506]
[1721621012576,3.2967251,3519.0,3518.6,6.05431506]
[1721621012971,0.2967251,3519.0,3518.6,7.18085257]
[1721621013665,2.84132,3519.5,3518.6,7.18085257]
[1721621013861,2.84132,3519.5,3518.7,2.84189]
[1721621014080,2.84132,3519.5,3518.8,5.9683]
[1721621014285,7.48,3519.6,3518.9,5.15039]
[1721621014455,7.48,3519.6,3519.2,2.84155]
[1721621014658,7.48,3519.6,3519.3,5.9674]
[1721621014992,7.48,3519.6,3519.3,6.05300325]
[1721621015958,7.48,3519.6,3519.3,8.89447325]
[1721621016158,7.48,3519.6,3519.3,10.06808358]
[1721621016861,3.0,3520.0,3519.3,10.06808358]
[1721621017094,2.84075,3520.2,3519.4,2.84137]
[1721621017095,3.0,3519.9,3519.4,2.84137]
[1721621017420,3.0,3520.1,3519.5,6.05263404]
[1721621017602,3.0,3520.2,3519.5,6.05263404]
[1721621017905,2.84097,3520.0,3519.5,6.05263404]
[1721621018267,3.0,3519.9,3519.5,6.05263404]
[1721621018711,2.8411,3519.8,3519.5,6.05263404]
[1721621021020,3.0,3519.9,3519.5,6.05263404]
[1721621022293,5.84082,3520.1,3519.5,6.05263404]
[1721621023217,3.0,3520.1,3519.5,6.05263404]
[1721621023390,0.88381233,3520.2,3519.6,0.8894014]
[1721621023391,3.0,3520.2,3519.6,0.8894014]
[1721621023593,3.0,3520.3,3519.7,6.0522866]
[1721621023799,3.0,3520.2,3519.7,6.0522866]
[1721621024313,5.84067,3520.3,3519.7,6.0522866]
[1721621024499,3.0,3520.3,3519.7,6.0522866]
[1721621024700,3.0,3520.3,3519.7,5.9668]
[1721621025218,3.0,3520.3,3519.8,0.08534502]
[1721621025521,3.0,3520.3,3519.9,5.9665]
[1721621025727,3.0,3520.3,3519.9,6.05182674]
[1721621027325,7.48,3520.4,3519.9,6.94113041]
[1721621027490,8.14466,3520.7,3519.9,6.94113041]
[1721621027801,3.0,3520.6,3519.9,6.94113041]
[1721621028003,5.84042,3520.6,3519.9,9.78211041]
[1721621028393,5.84042,3520.6,3519.9,6.94113041]
[1721621029112,2.84051,3520.5,3519.9,6.94113041]
[1721621030208,3.0,3520.6,3519.9,6.94113041]
[1721621030536,5.3043,3520.7,3519.9,6.94113041]
[1721621030900,3.0,3520.7,3520.0,2.4361]
[1721621031118,3.0,3520.7,3520.1,5.9662]
[1721621031333,3.0,3520.7,3520.1,6.05142735]
[1721621031741,2.84043,3520.6,3520.1,6.05142735]
[1721621031899,3.0,3520.5,3520.1,6.05142735]
[1721621032238,5.84051,3520.5,3520.1,6.05142735]
[1721621032603,2.84072,3520.3,3520.1,6.05142735]
[1721621032802,5.84051,3520.5,3520.1,6.05142735]
[1721621032803,5.68123,3520.4,3520.1,6.05142735]
[1721621033020,2.84058,3520.4,3520.1,6.05142735]
[1721621036506,2.84068,3520.3,3520.1,6.05142735]
[1721621037331,2.84074,3520.2,3520.1,6.05142735]
[1721621037531,5.68148,3520.2,3520.1,6.05142735]
[1721621041032,13.88082,3520.2,3520.1,6.05142735]
[1721621041234,16.72156,3520.2,3520.1,6.05142735]
[1721621041552,15.05923644,3520.2,3520.1,5.9662]
[1721621041723,14.76372379,3520.2,3520.1,5.9662]
[1721621041923,14.76372379,3520.2,3520.1,6.05111648]
[1721621042120,14.76372379,3520.2,3520.1,5.9662]
[1721621042314,14.76372379,3520.2,3520.1,6.05111648]
[1721621043017,13.88082,3520.2,3520.1,6.05111648]
[1721621043216,14.76372379,3520.2,3520.1,5.9662]
[1721621043418,14.76372379,3520.2,3520.1,6.05111648]
[1721621044354,13.88082,3520.2,3520.1,6.05111648]
[1721621045244,15.05923644,3520.2,3520.1,6.05111648]
[1721621045772,15.05923644,3520.2,3520.1,5.9662]
[1721621046069,15.05923644,3520.2,3520.1,6.05111868]
[1721621049182,13.88082,3520.2,3520.1,6.05111868]
[1721621049379,13.88082,3520.2,3520.1,5.9662]
[1721621049584,13.88082,3520.2,3520.1,6.05111868]
[1721621051496,15.35409429,3520.2,3520.1,6.05111868]
[1721621052847,12.51335429,3520.2,3520.1,6.05111868]
[1721621053077,9.86030117,3520.2,3520.1,6.05111868]
[1721621053451,9.86030117,3520.2,3520.1,5.9662]
[1721621053869,9.86030117,3520.2,3520.1,6.05113786]
[1721621054263,8.68148,3520.2,3520.1,6.05113786]
[1721621054882,8.68148,3520.2,3520.1,5.9662]
[1721621055058,2.4497,3520.1,3518.1,0.59609833]
[1721621055257,2.4497,3520.1,3517.3,1.78447832]
[1721621055258,0.88448849,3518.8,3517.7,1.95764463]
[1721621055496,0.88448849,3518.8,3517.8,2.4009]
[1721621055659,0.88448849,3518.8,3517.9,5.6846]
[1721621055860,1.17882117,3518.9,3518.0,1.29426516]
[1721621055861,3.0,3518.9,3518.0,1.29426516]
[1721621056073,3.88448849,3519.0,3518.1,5.6849]
[1721621056074,3.0,3519.0,3518.1,5.6849]
[1721621056292,0.88448849,3519.1,3518.1,5.6849]
[1721621056478,2.84202,3518.7,3518.1,5.6849]
[1721621056866,2.84179,3518.9,3518.1,5.6849]
[1721621057072,2.84187,3518.8,3518.2,0.69791652]
[1721621057267,2.84187,3518.8,3518.3,5.6846]
[1721621057497,2.84178,3519.0,3518.3,5.6846]
[1721621057498,2.84196,3518.7,3518.3,5.6846]
[1721621057789,0.88448849,3519.1,3518.3,5.6846]
[1721621057790,0.88448849,3518.9,3518.3,5.6846]
[1721621057991,2.84204,3518.6,3518.3,5.6846]
[1721621058170,2.84204,3518.6,3518.4,0.63825165]
[1721621058364,2.84204,3518.6,3518.5,5.6842]
[1721621060551,5.68408,3518.6,3518.5,5.6842]
[1721621060884,8.68408,3518.6,3518.5,5.6842]
[1721621062613,9.56856849,3518.6,3518.5,5.6842]
[1721621063207,8.68408,3518.6,3518.5,5.6842]
[1721621071140,5.84204,3518.6,3518.5,5.6842]
[1721621071456,5.84204,3518.6,3518.5,5.75467347]
[1721621072539,3.0,3518.6,3518.5,5.75467347]
[1721621072856,3.0,3518.7,3518.5,5.75467347]
[1721621073156,2.84164,3519.1,3518.5,6.33014082]
[1721621073449,7.48,3519.4,3518.5,6.33014082]
[1721621073450,2.84171,3519.0,3518.5,6.33014082]
[1721621073616,4.02268481,3519.5,3518.6,2.4979]
[1721621073820,3.13819632,3519.5,3518.7,6.63710227]
[1721621074121,2.84138,3519.5,3518.7,6.63710227]
[1721621074523,2.84143,3519.4,3518.7,6.63710227]
[1721621074872,2.84149,3519.3,3518.7,6.63710227]
[1721621075077,2.84158,3519.2,3518.8,0.89226312]
[1721621075234,2.84158,3519.2,3518.9,5.6836]
[1721621075570,3.0,3519.1,3519.0,0.07034332]
[1721621075861,3.0,3519.1,3519.0,5.6834]
[1721621076061,3.0,3519.2,3519.0,5.75374332]
[1721621076953,2.84163,3519.1,3519.0,5.75374332]
[1721621077318,5.84163,3519.1,3519.0,5.75374332]
[1721621077518,3.0,3519.1,3519.0,5.75374332]
[1721621078653,2.84154,3519.3,3519.0,5.75374332]
[1721621078880,5.84155,3519.2,3519.0,5.75374332]
[1721621079023,2.84155,3519.2,3519.0,5.75374332]
[1721621079222,3.0,3519.1,3519.0,5.75374332]
[1721621081022,5.84163,3519.1,3519.0,5.75374332]
[1721621082251,3.0,3519.1,3519.0,5.75374332]
[1721621082765,5.84163,3519.1,3519.0,5.75374332]
[1721621083468,8.68326,3519.1,3519.0,5.75374332]
[1721621083767,5.84163,3519.1,3519.0,5.6834]
[1721621084142,5.84163,3519.1,3519.0,5.75365749]
[1721621085236,8.68326,3519.1,3519.0,5.75365749]
[1721621085667,8.68326,3519.1,3519.0,5.6834]
[1721621085967,8.68326,3519.1,3519.0,5.75365749]
[1721621087824,5.84163,3519.1,3519.0,5.75365749]
[1721621088673,6.72611849,3519.1,3519.0,5.75365749]
[1721621089167,6.72611849,3519.1,3519.0,5.6834]
[1721621089334,5.84163,3519.1,3519.0,5.6834]
[1721621089536,6.72611849,3519.1,3519.0,5.75367562]
[1721621089760,6.72611849,3519.1,3519.0,5.6834]
[1721621090081,6.72611849,3519.1,3519.0,5.75367562]
[1721621091937,5.84163,3519.1,3519.0,5.75367562]
[1721621092137,6.72611849,3519.1,3519.0,5.75367562]
[1721621093836,3.88448849,3519.1,3519.0,5.75367562]
[1721621094042,0.88448849,3519.2,3519.0,5.75367562]
[1721621094284,3.88448849,3519.3,3519.0,5.75367562]
[1721621094873,3.0,3519.3,3519.0,5.75367562]
[1721621095341,3.88448849,3519.4,3519.0,5.75367562]
[1721621096173,6.72588849,3519.4,3519.0,5.75367562]
[1721621098184,0.88448849,3519.3,3519.0,5.75367562]
[1721621100068,3.88448849,3519.3,3519.0,5.75367562]
[1721621100563,6.72596849,3519.3,3519.0,5.75367562]
[1721621101277,0.88448849,3519.2,3519.0,5.75367562]
[1721621102270,6.72596849,3519.3,3519.0,5.75367562]
[1721621103943,3.88448849,3519.3,3519.0,5.75367562]
[1721621104144,0.88448849,3519.3,3519.0,5.75367562]
[1721621104564,1.17882117,3519.4,3519.0,5.75367562]
[1721621104565,3.72718164,3519.1,3519.0,5.75367562]
[1721621104777,3.72718164,3519.1,3519.0,5.6834]
[1721621104977,2.84163,3519.1,3519.0,5.75365749]
[1721621105193,1.17882117,3519.1,3519.0,5.75365749]
[1721621105374,1.17882117,3519.2,3519.0,5.75365749]
[1721621105540,0.88551286,3519.1,3519.0,5.75365749]
[1721621105746,8.17226,3519.1,3519.0,5.75365749]
[1721621105985,14.01389,3519.1,3519.0,5.75365749]
[1721621106291,14.01389,3519.1,3519.0,5.6834]
[1721621106292,14.75170539,3519.1,3519.0,5.6834]
[1721621106447,16.52246778,3519.1,3519.0,5.6834]
[1721621106649,16.52246778,3519.1,3519.0,5.75362484]
[1721621109299,14.75170539,3519.1,3519.0,5.75362484]
[1721621109849,14.75170539,3519.1,3519.0,5.6834]
[1721621110747,14.75169195,3519.1,3519.0,5.6834]
[1721621117088,11.91006195,3519.1,3519.0,5.6834]
[1721621117703,14.75169195,3519.1,3519.0,5.6834]
[1721621118008,16.52269087,3519.1,3519.0,5.6834]
[1721621118312,14.75169195,3519.1,3519.0,5.6834]
[1721621119872,11.91006195,3519.1,3519.0,5.6834]
[1721621120815,14.75169195,3519.1,3519.0,5.6834]
[1721621121174,13.68074909,3519.1,3519.0,5.6834]
[1721621121567,16.52237909,3519.1,3519.0,5.6834]
[1721621121798,13.68065181,3519.1,3519.0,5.6834]
[1721621122116,11.17226,3519.1,3519.0,5.6834]
[1721621123292,11.9100428,3519.1,3519.0,5.6834]
[1721621124413,13.68063682,3519.1,3519.0,5.6834]
[1721621124895,13.68062337,3519.1,3519.0,5.6834]
[1721621125301,11.9100428,3519.1,3519.0,5.6834]
[1721621125476,13.68059672,3519.1,3519.0,5.6834]
[1721621127293,11.9100428,3519.1,3519.0,5.6834]
[1721621127821,11.90945976,3519.1,3519.0,5.6834]
[1721621128493,13.68000019,3519.1,3519.0,5.6834]
[1721621129289,11.90945976,3519.1,3519.0,5.6834]
[1721621129616,13.67990138,3519.1,3519.0,5.6834]
[1721621131741,9.42045976,3519.1,3519.0,5.6834]
[1721621132109,8.68326,3519.1,3519.0,5.6834]
[1721621132411,11.19100908,3519.1,3519.0,5.6834]
[1721621132819,9.42046639,3519.1,3519.0,5.6834]
[1721621135443,11.19102039,3519.1,3519.0,5.6834]
[1721621136555,9.42046639,3519.1,3519.0,5.6834]
[1721621136841,11.19102039,3519.1,3519.0,5.6834]
[1721621137244,9.42046639,3519.1,3519.0,5.6834]
[1721621137451,11.19113284,3519.1,3519.0,5.6834]
[1721621137775,11.19118644,3519.1,3519.0,5.6834]
[1721621138465,16.34291644,3519.1,3519.0,5.6834]
[1721621138762,16.34291861,3519.1,3519.0,5.6834]
[1721621139320,13.50128861,3519.1,3519.0,5.6834]
[1721621139818,16.34291861,3519.1,3519.0,5.6834]
[1721621140356,11.73056639,3519.1,3519.0,5.6834]
[1721621140572,13.50138414,3519.1,3519.0,5.6834]
[1721621141339,16.34301414,3519.1,3519.0,5.6834]
[1721621141543,13.50138414,3519.1,3519.0,5.6834]
[1721621142060,16.34324188,3519.1,3519.0,5.6834]
[1721621142265,14.57219639,3519.1,3519.0,5.6834]
[1721621144067,11.73056639,3519.1,3519.0,5.6834]
[1721621144362,14.57219639,3519.1,3519.0,5.6834]
[1721621145270,14.57218573,3519.1,3519.0,5.6834]
[1721621148956,14.86740119,3519.1,3519.0,5.6834]
[1721621149156,2.84203,3518.7,3517.7,4.25934463]
[1721621149327,0.88645801,3517.8,3517.7,4.70822503]
[1721621149528,1.18194401,3517.8,3517.7,10.56803526]
[1721621149863,1.18194401,3517.8,3517.7,8.26633526]
[1721621149864,4.02462401,3517.8,3517.7,8.26633526]
[1721621150649,2.84268,3517.8,3517.7,8.26633526]
[1721621150825,4.02528401,3517.8,3517.7,8.26633526]
[1721621151663,6.42245345,3517.8,3517.7,7.81745486]
[1721621152261,5.68536,3517.8,3517.7,7.81745486]
[1721621154474,7.16221458,3517.8,3517.7,7.81745486]
[1721621155480,4.31953458,3517.8,3517.7,7.81745486]
[1721621155641,4.02391327,3517.8,3517.7,7.81745486]
[1721621155861,2.84268,3517.8,3517.7,7.81745486]
[1721621156347,4.02384327,3517.9,3517.7,7.81745486]
[1721621156546,2.84268,3517.8,3517.7,8.86514628]
[1721621156768,4.02388469,3517.8,3517.7,8.86514628]
[1721621157148,4.02388469,3517.8,3517.7,7.81745486]
[1721621158486,8.17256,3517.8,3517.7,7.81745486]
[1721621158774,4.31917526,3517.8,3517.7,7.81745486]
[1721621159153,4.31918162,3517.8,3517.7,7.81745486]
[1721621160750,2.84268,3517.8,3517.7,7.81745486]
[1721621160964,4.31918162,3517.8,3517.7,7.81745486]
[1721621161160,2.84268,3517.8,3517.7,7.81745486]
[1721621161369,4.02372897,3517.8,3517.7,7.81745486]
[1721621161659,1.18104897,3517.8,3517.7,7.81745486]
[1721621162088,1.18104897,3517.9,3517.7,8.62214628]
[1721621162451,1.47630993,3518.1,3517.7,8.62214628]
[1721621162452,0.88576004,3517.8,3517.7,8.62214628]
[1721621162854,0.88589639,3517.8,3517.7,8.62214628]
[1721621163174,0.88593299,3517.8,3517.7,8.62214628]
[1721621163677,2.84268,3517.8,3517.7,10.95864628]
[1721621163853,0.88589421,3518.1,3517.7,10.95864628]
[1721621164161,0.88589421,3518.3,3517.8,1.38806973]
[1721621164350,0.88589421,3518.3,3517.9,5.6853]
[1721621164550,0.88589421,3518.3,3517.9,5.84801341]
[1721621165567,0.88589421,3518.1,3517.9,5.84801341]
[1721621166205,0.88589421,3518.4,3518.1,2.3365]
[1721621166355,1.18104897,3518.6,3518.1,2.3365]
[1721621166356,0.88589421,3518.5,3518.2,6.78740334]
[1721621166688,0.88589421,3518.5,3518.3,0.16258972]
[1721621166867,0.88589421,3518.4,3518.3,0.16258972]
[1721621167050,3.72809421,3518.4,3518.3,5.84708972]
[1721621167501,5.6844,3518.4,3518.3,5.84708972]
[1721621167712,7.16105893,3518.4,3518.3,5.84708972]
[1721621167934,7.16105893,3518.4,3518.3,5.6845]
[1721621167935,8.0266,3518.4,3518.3,5.6845]
[1721621168289,8.0266,3518.4,3518.3,5.84705948]
[1721621168497,4.31924706,3518.4,3518.3,5.84705948]
[1721621169183,2.8422,3518.4,3518.3,5.84705948]
[1721621172320,5.6844,3518.4,3518.3,5.84705948]
[1721621172543,8.6844,3518.4,3518.3,5.84705948]
[1721621173794,8.6844,3518.4,3518.3,5.6845]
[1721621174211,5.8422,3518.4,3518.3,5.84704616]
[1721621175081,8.6844,3518.4,3518.3,5.84704616]
[1721621175994,5.8422,3518.4,3518.3,5.84704616]